Cogmind - Beta 15 @@@ ROGUE MODE // 2025.07.10 @ 00:37:09 Player: Inverisimilidude Result: Destroyed by Enhanced Grunt with Makeshift Power Source chain reaction Performance ------------- Evolutions (1) 500 Regions Visited (5) 1000 Robots Destroyed (28) 140 Value Destroyed (810) 810 Prototype IDs (6) 120 Alien Tech Used (0) 0 Bonus (414) 414 TOTAL SCORE: 2984 Bonus ------- Met Imprinter 300 Was Imprinted 300 Friendly Fire -186 Cogmind --------- Core Integrity 0/400 Matter 236/300 Energy 100/100 System Corruption 2% Temperature Cool (12) Movement Core (50) Location -7/Zion Parts ------- > --- POWER (1) -------- (None) > --- PROPULSION (3) --- (None) > --- UTILITY (3) ------ (None) > --- WEAPON (2) ------- (None) > --- INVENTORY (5) ---- Light Armor Plating Improved Assault Rifle Assault Cannon Peak State ------------ > --- POWER ------------ Ion Engine > --- PROPULSION ------- Aluminum Leg VSS Leg Compact Wheel > --- UTILITY ---------- Small Storage Unit Advanced Visual Processing Unit Hacking Drone Bay > --- WEAPON ----------- Light Assault Rifle Rocket Array > --- INVENTORY -------- Light Armor Plating Bomb Factory No. 2 Light Assault Rifle Improved Assault Rifle Assault Cannon [Rating: 27] Favorites ----------- Power Ion Engine Engine Ion Engine Propulsion Aluminum Leg Leg Aluminum Leg Wheel Compact Wheel Utility Small Storage Unit Device Hacking Drone Bay Storage Small Storage Unit Processor Advanced Visual Processing Unit Weapon Light Assault Rifle Ballistic Gun Light Assault Rifle Ballistic Cannon Assault Cannon Launcher Rocket Launcher Special Weapon Mining Laser Build | -11 -10 -10 -9 -9 -7 ------- Run | Yrd Mat Min Mat Min Zio Slots Evolved 2 | . . . 2 . . Power . | . . . . . . Propulsion 1 | . . . 1 . . Utility 1 | . . . 1 . . Weapon . | . . . . . . Parts Attached 27 | 7 1 3 7 . 9 Power 3 | 2 . . . . 1 Engine 3 | 2 . . . . 1 Core . | . . . . . . Reactor . | . . . . . . Propulsion 6 | 2 . . 3 . 1 Treads . | . . . . . . Leg 5 | 2 . . 3 . . Wheel 1 | . . . . . 1 Hover . | . . . . . . Flight . | . . . . . . Utility 8 | 1 1 1 2 . 3 Device 5 | . . . 2 . 3 Storage 1 | 1 . . . . . Processor 2 | . 1 1 . . . Hackware . | . . . . . . Protection . | . . . . . . Artifact . | . . . . . . Weapon 10 | 2 . 2 2 . 4 Energy Gun . | . . . . . . Energy Cannon . | . . . . . . Ballistic Gun 4 | 2 . 1 1 . . Ballistic Cannon 1 | . . 1 . . . Launcher 4 | . . . 1 . 3 Special Weapon 1 | . . . . . 1 Impact Weapon . | . . . . . . Slashing Weapon . | . . . . . . Piercing Weapon . | . . . . . . Special Melee Weapon . | . . . . . . Unidentified Prototypes 6 | . . . 1 . 5 Parts Lost 7 | . . . 3 . 4 Power 1 | . . . . . 1 Propulsion 3 | . . . 1 . 2 Utility 1 | . . . 1 . . Weapon 2 | . . . 1 . 1 Highest Loss Streak 4 | . . . 2 . 4 To Critical Strikes . | . . . . . . Average Backups 6 | 2 6 7 7 8 6 Power . | . 1 1 1 1 . Propulsion . | 1 2 2 1 1 . Utility 1 | . . 1 1 1 2 Weapon 4 | . 1 2 4 4 4 Tool/Special . | . . . . . . Unused Backups 4 | . . 1 1 1 1 Power . | . . . . . . Propulsion 1 | . . 1 . . . Utility 2 | . . . 1 . 1 Weapon 1 | . . . . 1 . Tool/Special . | . . . . . . Average Slot Usage (%) 90 | . 96 100 98 88 87 Engine 11 | . 14 14 11 11 10 Leg 23 | . 28 28 32 22 21 Wheel 7 | . . . . . 9 Device 9 | . . . 10 11 10 Storage 11 | . 14 14 11 11 10 Processor 11 | . 11 14 11 11 10 Ballistic Gun 14 | . 28 23 14 22 12 Peak Build Rating 27 | 6 7 12 17 15 27 Average Rating 17 | 4 6 8 15 15 20 On Entrance 9 | . 6 7 12 15 15 Naked Turns 45 | . . . . . 45 Heaviest Build 37 | 12 12 17 21 16 37 Greatest Support 32 | 20 20 20 32 22 22 Greatest Overweight (x) 3 | 3 . . 1 . 3 Average Overweight (x) . | . . . . . . Largest Inventory Capacity 8 | 8 8 8 8 8 8 Average Capacity 7 | 7 8 8 8 8 7 Most Carried 8 | 4 7 8 8 8 8 Average Carried 7 | 2 6 7 7 8 7 Final Capacity 8 | 8 8 8 8 8 5 Final Carried 8 | 4 7 8 8 8 3 Class Distribution -------------------- 100% | Mutant Dominant Class ---------------- Mutant | -10/Materials Mutant | -10/Mines Mutant | -9/Materials Mutant | -9/Mines Mutant | -7/Zion Resources | -11 -10 -10 -9 -9 -7 ----------- Run | Yrd Mat Min Mat Min Zio Matter Collected 873 | 200 . 184 281 31 177 Remotely . | . . . . . . Salvage Created 647 | . . 140 339 . 168 Parts 50 | . . 11 29 . 10 Haulers Intercepted . | . . . . . . Recyclers Shooed . | . . . . . . Parts Field Recycled . | . . . . . . Retrieved Matter . | . . . . . . Parts Self-Destructed 3 | . . . . . 3 Prevented . | . . . . . . Kills | -11 -10 -10 -9 -9 -7 ------- Run | Yrd Mat Min Mat Min Zio Combat Hostiles Destroyed 24 | . . 6 13 . 5 Guns 10 | . . 5 5 . . Cannons 2 | . . 1 1 . . AOE 12 | . . . 7 . 5 Classes Destroyed 9 | . . 2 3 . 4 Builder 1 | . . . 1 . . Swarmer 8 | . . 3 5 . . Grunt 7 | . . 3 4 . . Brawler 1 | . . . 1 . . Sentry 3 | . . . 3 . . Zionite 3 | . . . . . 3 Thug 1 | . . . . . 1 Butcher 1 | . . . . . 1 Guerrilla 1 | . . . . . 1 Mutant 2 | . . . . . 2 Best Kill Streak 8 | . . 3 4 . 8 Combat Bots Only 5 | . . 3 4 . 5 Max Kills in Single Turn 5 | . . 1 2 . 5 Gunslinging . | . . . . . . Exploded 4 | . . . 2 . 4 Melee . | . . . . . . Uniques/NPCs Destroyed . | . . . . . . Combat | -11 -10 -10 -9 -9 -7 -------- Run | Yrd Mat Min Mat Min Zio Hostile Shots Fired 125 | . . 25 57 . 43 Missed 42 | . . 9 20 . 13 Hits 83 | . . 16 37 . 30 Melee 1 | . . . . . 1 Projectile 82 | . . 16 37 . 29 AOE 1 | . . . . . 1 Critical Strikes 3 | . . . 1 . 2 Damage Taken 1500 | . . 159 566 . 775 Core 483 | . . 74 103 . 306 Absorbed by Shields . | . . . . . . Core Remaining (%) 85 | 100 . 70 . . . Volleys Fired 52 | . . 13 36 . 3 Largest 2 | . . 2 2 . 1 Hottest 60 | . . 57 60 . 45 Shots Fired 99 | . . 26 70 . 3 Gun 75 | . . 18 57 . . Cannon 17 | . . 8 9 . . Launcher 7 | . . . 4 . 3 Special . | . . . . . . Kinetic 92 | . . 26 66 . . Thermal . | . . . . . . Explosive 7 | . . . 4 . 3 Electromagnetic . | . . . . . . Robot Hit Streak 8 | . . 5 8 . 2 Robot Miss Streak 2 | . . 2 1 . 2 Penetration Max . | . . . . . . Secondary Targets . | . . . . . . Shots Hit Robots 68 | . . 16 50 . 2 Core Hits 70 | . . 8 23 . 39 Critical Kills . | . . . . . . Critical Parts Destroyed 1 | . . . 1 . . Critical Strikes 1 | . . . 1 . . Destroy 1 | . . . 1 . . Melee Attacks . | . . . . . . Impact . | . . . . . . Slashing . | . . . . . . Piercing . | . . . . . . Sneak Attacks . | . . . . . . Combat Hostiles . | . . . . . . Follow-up Attacks . | . . . . . . Damage Inflicted 3295 | . . 281 1376 . 1638 Guns 692 | . . 126 566 . . Cannons 317 | . . 155 162 . . Explosions 2276 | . . . 643 . 1633 Melee . | . . . . . . Ramming 10 | . . . 5 . 5 Kinetic 1009 | . . 281 728 . . Thermal . | . . . . . . Explosive 2276 | . . . 643 . 1633 Electromagnetic . | . . . . . . Impact . | . . . . . . Slashing . | . . . . . . Piercing . | . . . . . . Highest Corruption 2 | . . . . . 2 Average Corruption 2 | . . . . . 2 Corruption Purged . | . . . . . . Corruption Blocked . | . . . . . . Overload Shots . | . . . . . . Overflow Damage 35 | . . . . . 35 Projectiles . | . . . . . . Explosions 35 | . . . . . 35 Melee . | . . . . . . Knockbacks 3 | . . 3 . . . Impact . | . . . . . . Kinetic 3 | . . 3 . . . Secondary . | . . . . . . Self-Inflicted Damage 261 | . . . 36 . 225 Shots 10 | . . . 2 . 8 Rammed . | . . . . . . Targets Rammed 1 | . . . 1 . . Kicked 1 | . . . 1 . . Crushed . | . . . . . . Highest Temperature 42 | . . 42 28 . 31 Average Temperature 18 | . . 27 8 . 20 Received Heat Transfer 445 | . . 66 228 . 151 Siege Activations . | . . . . . . Martial Activations . | . . . . . . Shielding Activations . | . . . . . . Robots Disrupted . | . . . . . . Combat Hostiles . | . . . . . . Robots Corrupted . | . . . . . . Combat Hostiles . | . . . . . . Parts Fried . | . . . . . . Impact Corruptions . | . . . . . . Robots Melted . | . . . . . . Combat Hostiles . | . . . . . . Parts Melted . | . . . . . . Heat Transferred . | . . . . . . Parts Sabotaged . | . . . . . . Parts Stolen . | . . . . . . Parts Stripped . | . . . . . . Power Chain Reactions . | . . . . . . Alert | -11 -10 -10 -9 -9 -7 ------- Run | Yrd Mat Min Mat Min Zio Maximum Alert Level . | . . . . . . Low Security (%) 100 | 100 100 100 100 100 . Level 1 . | . . . . . . Level 2 . | . . . . . . Level 3 . | . . . . . . Level 4 . | . . . . . . Level 5 . | . . . . . . High Security . | . . . . . . Max Security . | . . . . . . Peak Influence 193 | . 30 77 193 66 . Initial 66 | . . 7 11 66 . Average 42 | . . 31 84 39 . Influence Increases 525 | . 30 141 354 . . Destroy 0b10 Robot/C 380 | . . 120 260 . . Destroy 0b10 Robot/NC 5 | . . . 5 . . Destroy Leader 70 | . . 20 50 . . Successful Hack 10 | . . . 10 . . Destroy Structure 30 | . . 1 29 . . Lose Combat Pursuer 30 | . 30 . . . . Influence Decreases 525 | . 10 130 215 164 6 Entered New Map 143 | . . 13 20 104 6 Time Decay 362 | . 10 117 175 60 . Lost Part 20 | . . . 20 . . Squads Dispatched 2 | . . 1 1 . . Investigation 1 | . . 1 . . . Extermination . | . . . . . . Reinforcement 1 | . . . 1 . . Assault . | . . . . . . Garrison . | . . . . . . Intercept . | . . . . . . Searches Triggered . | . . . . . . Construction Impeded . | . . . . . . Haulers Reinforced . | . . . . . . Active Scanning Responses . | . . . . . . Cargo Convoy Interrupts . | . . . . . . Stealth | -11 -10 -10 -9 -9 -7 --------- Run | Yrd Mat Min Mat Min Zio Distress Signals 4 | . 1 . 3 . . Communications Jammed . | . . . . . . Distress Signals . | . . . . . . Times Spotted 61 | . 4 6 31 . 20 Peak Tracking Total 12 | . 5 3 5 . 12 Tactical Retreats 5 | . 1 . 3 . 1 Traps | -11 -10 -10 -9 -9 -7 ------- Run | Yrd Mat Min Mat Min Zio Traps Triggered . | . . . . . . Indirectly . | . . . . . . Trap Hack Attempts . | . . . . . . Triggered . | . . . . . . Disarmed . | . . . . . . Reprogrammed . | . . . . . . Reused . | . . . . . . Traps Extracted . | . . . . . . Installed . | . . . . . . Triggered . | . . . . . . Machines | -11 -10 -10 -9 -9 -7 ---------- Run | Yrd Mat Min Mat Min Zio Machines Disabled 1 | . . . . . 1 Max in Single Turn . | . . . . . . Machines Repaired . | . . . . . . Machines Dismantled . | . . . . . . Machines Sabotaged . | . . . . . . Overloaded Fab Kills . | . . . . . . Hacking | -11 -10 -10 -9 -9 -7 --------- Run | Yrd Mat Min Mat Min Zio Machines Accessed 4 | . . 1 2 1 . Terminals 2 | . . . 2 . . Fabricators . | . . . . . . Repair Stations . | . . . . . . Recycling Units . | . . . . . . Scanalyzers . | . . . . . . Garrison Access . | . . . . . . Total Hacks 7 | . . 1 5 1 . Successful 7 | . . 1 5 1 . Failed . | . . . . . . Catastrophic . | . . . . . . Database Lockouts . | . . . . . . Manual 5 | . . . 4 . 1 Terminals 5 | . . . 5 . . Fabricators . | . . . . . . Repair Stations . | . . . . . . Recycling Units . | . . . . . . Scanalyzers . | . . . . . . Garrison Access . | . . . . . . Terminal Hacks 3 | . . 1 1 1 . Open Door 2 | . . 1 . 1 . Branch Access Points 1 | . . . 1 . . Fabricator Hacks . | . . . . . . Repair Station Hacks . | . . . . . . Recycling Unit Hacks . | . . . . . . Scanalyzer . | . . . . . . Garrison Access Hacks . | . . . . . . Unauthorized Hacks 4 | . . . 4 . . Terminals 4 | . . . 4 . . Assimilate 1 | . . . 1 . . Botnet 2 | . . . 2 . . Operators 1 | . . . 1 . . Fabricators . | . . . . . . Repair Stations . | . . . . . . Recycling Units . | . . . . . . Scanalyzers . | . . . . . . Garrison Access . | . . . . . . Data Cores Recovered . | . . . . . . Used . | . . . . . . Hacking Detections 1 | . . . 1 . . Full Trace Events 1 | . . . 1 . . Feedback Events . | . . . . . . Feedback Blocked . | . . . . . . Robot Schematics Acquired . | . . . . . . Robots Built . | . . . . . . Authchips . | . . . . . . Time . | . . . . . . Total Robot Build Rating . | . . . . . . Part Schematics Acquired . | . . . . . . Parts Built . | . . . . . . Authchips . | . . . . . . Time . | . . . . . . Total Part Build Rating . | . . . . . . Parts Repaired . | . . . . . . Time . | . . . . . . Parts Recycled . | . . . . . . Recycled Matter . | . . . . . . Retrieved Matter . | . . . . . . Retrieved Components . | . . . . . . Parts Scanalyzed . | . . . . . . Part Schematics Acquired . | . . . . . . Parts Damaged . | . . . . . . Bothacking | -11 -10 -10 -9 -9 -7 ------------ Run | Yrd Mat Min Mat Min Zio Used RIF Installer . | . . . . . . Robots Hacked . | . . . . . . Non-combat . | . . . . . . Combat . | . . . . . . Robot Hacks Applied . | . . . . . . Relay Couplers Released . | . . . . . . Fabnet Peak Effective % . | . . . . . . Robots Rewired . | . . . . . . Allies Hacked . | . . . . . . Hacks Repelled . | . . . . . . Allies | -11 -10 -10 -9 -9 -7 -------- Run | Yrd Mat Min Mat Min Zio Total Allies 10 | . . . . . 10 Largest Group 8 | . . . . . 8 Highest-Rated Group 280 | . . . . . 280 Highest-Rated Ally 96 | . . . . . 96 Total Orders 1 | . . . . . 1 RETURN 1 | . . . . . 1 Ally Attacks 3 | . . . . . 3 Total Damage 276 | . . . . . 276 Kills 2 | . . . . . 2 Allies Corrupted . | . . . . . . Allies Melted . | . . . . . . Intel | -11 -10 -10 -9 -9 -7 ------- Run | Yrd Mat Min Mat Min Zio Active Infowar (turns) 4335 | . 224 309 455 122 3225 Optics 3914 | . . 112 455 122 3225 T.N.C. 421 | . 224 197 . . . ECM 1055 | . . . 412 122 521 Robot Analysis Total . | . . . . . . Derelict Logs Recovered 2 | . . 1 . . 1 Drone Launches 3 | . . . . . 3 Drone Recoveries 3 | . . . . . 3 Exploration | -11 -10 -10 -9 -9 -7 ------------- Run | Yrd Mat Min Mat Min Zio Turns Passed 4522 | 80 280 310 455 122 3275 Spaces Moved 4015 | 65 230 207 258 105 3150 Core 105 | 32 . . . . 73 Treads . | . . . . . . Legs 1074 | 33 230 207 258 105 241 Wheels 2836 | . . . . . 2836 Hover . | . . . . . . Flight . | . . . . . . Fastest Speed 50 | 50 120 120 105 105 50 Average Speed 104 | 93 120 120 115 105 101 Slowest Speed 330 | 200 120 120 190 105 330 Overloaded Moves . | . . . . . . Propulsion Burnouts . | . . . . . . Robots Hopped . | . . . . . . Potential Cave-ins . | . . . . . . Cave-ins Triggered . | . . . . . . Exploration Rate (%) 39 | 4 30 42 29 37 92 Regions Visited 5 Branch Regions 3 Pre-discovered Areas 1 | . . . . . 1 Known Exits Taken 1 | . . . 1 . . Unknown Exits Taken 4 | 1 1 1 . 1 . Scrap Searched 6 | . . 1 . 1 4 Spaces Dug 8 | . . . 8 . . Terrain Destroyed 41 | . . 1 29 . 11 Melee . | . . . . . . Projectile 2 | . . 1 1 . . AOE 39 | . . . 28 . 11 Terrain Rammed 1 | . . . . . 1 Walls Destroyed . | . . . . . . Machines Disabled . | . . . . . . Actions | -11 -10 -10 -9 -9 -7 --------- Run | Yrd Mat Min Mat Min Zio Total 4246 | 81 233 244 342 117 3229 Wait 107 | 6 . 16 26 8 51 Move 4010 | 64 229 206 257 104 3150 Hop . | . . . . . . Pick Up 19 | 4 3 3 5 1 3 Fast Attach 11 | 6 1 1 . . 3 Attach 8 | . . . 4 . 4 Detach 1 | . . 1 . . . Swap 16 | 1 . 2 10 . 3 Drop 16 | . . 2 3 1 10 Fire 52 | . . 13 36 . 3 Melee . | . . . . . . Ram 1 | . . . . . 1 Kick 1 | . . . 1 . . Crush . | . . . . . . Escape Stasis . | . . . . . . Rewire 4 | . . . . 3 1 Trap . | . . . . . . Miscellaneous . | . . . . . . Route ------- -11/Scrapyard -10/Materials -10/Mines -9/Materials -9/Mines -7/Zion (discovered 1 exit: [*Pro]) History --------- Turn | Location | Event 31 | -11/Scrapyard | Discovered new exit (range 15) 81 | -11/Scrapyard | Entered Materials 159 | -10/Materials | Discovered new exit (range 8) 310 | -10/Materials | Build established: Mutant 361 | -10/Materials | Entered Mines 467 | -10/Mines | Discovered new exit (range 8) 534 | -10/Mines | Met a Derelict shopkeep closing up shop 539 | -10/Mines | Learned Materials terminal intel 671 | -10/Mines | Entered Materials 671 | -9/Materials | Evolved 2 slots: Propulsion x1, Utility x1 672 | -9/Materials | Loaded intel: 12 terminal locations 845 | -9/Materials | Identified exit to Mines 1126 | -9/Materials | Entered Mines 1131 | -9/Mines | Found the Drone Emporium 1143 | -9/Mines | Found Prototype Device 1228 | -9/Mines | Found a damaged Exp. Sensor Array with a note attached 1238 | -9/Mines | A Derelict revealed a hidden shortcut to a safe place 1248 | -9/Mines | Entered Zion 1259 | -7/Zion | Given A8's code to call for help 1501 | -7/Zion | Found Prototype Device 1742 | -7/Zion | Learned location of 1 exit from Proximity Caves 1752 | -7/Zion | Found Prototype Launcher 1753 | -7/Zion | Identified Rocket Array 1769 | -7/Zion | Identified Splice Drone Bay 1983 | -7/Zion | Gained Derelict followers 2119 | -7/Zion | Learned location of Warlord (-5) 2254 | -7/Zion | Given the Hacking Drone Bay 2257 | -7/Zion | Found Prototype Device 2257 | -7/Zion | Identified Hacking Drone Bay 2383 | -7/Zion | Met Imprinter 2407 | -7/Zion | Imprinted 2409 | -7/Zion | Declared Zion's savior 3283 | -7/Zion | Discovered new exit (range 15) 4454 | -7/Zion | Attacked by Zionites 4466 | -7/Zion | Core integrity fell below 50% 4474 | -7/Zion | Identified Bomb Factory No. 2 4478 | -7/Zion | Released all parts (4) 4485 | -7/Zion | Core integrity fell below 20% 4506 | -7/Zion | Lost 4 parts (1p2n1w) 4520 | -7/Zion | Enhanced Grunt warped into view, answering call for help 4523 | -7/Zion | Enhanced Grunt warped into view, answering call for help 4523 | -7/Zion | Destroyed by Enhanced Grunt with Makeshift Power Source chain reaction Last Messages --------------- 04489_ P9-LTT(z) pulls a Mak. Axe out of the Twisted Machinery. 04493_ VD-ZVO(z) pulls a Mak. Sword out of the Twisted Machinery. WG-AAK(z) bursts out of the Twisted Machinery. 04514_ Connecting with Deep Containment System... 04514_ Transmitting encrypted signal... >>\\ATKJ Transmitting encrypted signal... 04515_ WG-AAK(z) pulls a Mak. Shrapnel Gun out of the Twisted Machinery. 04520_ Enhanced Grunt warps into view. 04520_ WG-AAK(z) destroyed. 04523_ Enhanced Grunt warps into view. 04523_ Chain reaction triggered in Mak. Power Source. 04523_ K2-S0J(z) destroyed. RQ-5RX(z) bursts out of the Twisted Machinery. 04523_ Deep Containment System disabled. Map ----- +----------------------------------------------------+ | ???????????????????????????????????????????????? | | ???????????????????????????????????????????????? | | ???????????????????????????????????????????????? | | ???????????????????????????????????????????????? | | ???????????????????????????????????????????????? | | ???????????????????????????????????????????????? | | ???????????????????????????????????????????????? | | ???????????????????????????????????????????????? | | ???????????????????????????????????????????????? | | ???????????????????????????????????????????????? | | ???????????????????????????????????????????????? | | ???????????????????????????????????????????????? | | ???????????????????????????????????????????????? | | ???????????????????????????????#############???? | | ??????????????????????????????##""#"##"#"#"##### | | ???????????????????????????####""""""""""""""""# | | ???????????????????????????#"" "" "" """""# | | ???????????????????????????#" #" "" | | ???????????????????????????#""! | | ???????????????????????????#### | | ?????????????????????????????# | | ?????????????????????????????### "" | | ?????????????????????######??#"" "" | | ??????????????????????""#"##?##"" "" | | ??????????????????????#" #??#"" """"" | | ??????????????????????"@ ####" """" | | ??????????????????????#g%z #""#" """"" | | ?????????????????????## g " """ """"" | | ?????????????????????" """" """" | | ?????????????????????" " " "" | | ?????????????????????# """ ! """ | | ???????????????????#""""""""" % "" | | ???????????????????#"""# """ """ """ | | ??????????????????# ## "###""M """"" """""" | | ??????????????????##?#### ""% ="""" ""##""" | | ????????????????????????# # " "" """"""""" | | ????????????????????????###"" | | ?????????????????????????#"" [!= | | ?????????????????????????##""" !/*! """"" | | ??????????????????????????#"# """ [ """"" | | ?????????????????????????#"#"###" """"" | | ?????????????????????????#####""" """" " | | ???????????????????????????#"#"" " ! | | ??????????????????????????###"" """""""""" ! | | ??????????????????????????#"""" """""##""""!! | | ??????????????????????????##"" """""""##"" | | ??????????????????????????###" """" """"" | | ??????????????????????????#" " """ ""#" | | ??????????????????????????##" """ """" | | ??????????????????????##### " """" """ | +----------------------------------------------------+ Best States ------------- Heat Dissipation 28 Energy Generation 10 Energy Capacity 250 Matter Stores 300 Matter Capacity 300 Sight Range 20 Terrain Scan Density 10 ECM Strength 1 Evasion (%) 63 Item Schematics ----------------- None Robot Schematics ------------------ None Fabricated ------------ Nothing Repaired ---------- Nothing Alien Tech Used ----------------- None Achievements -------------- None Challenges ------------ None Game ------ Seed DefenseGhostShield Manual? 0 Play Time 00:44:00 Cumulative 37.9 hours Start 2025.07.09 @ 22:28:09 End 2025.07.10 @ 00:37:09 Sessions 2 Manual Loads 0 Difficulty Rogue Special Mode None Game No. 47 Rogue 47 Adventurer 0 Explorer 0 Win Type - Total 0 Types 0/0/0/0/0/0/0/0/0/0 Lore% 20 Gallery% 27 Achievement% 28 Wizard Run 0 Options --------- Layout 1 ASCII 0 Keyboard 0 Movement Arrows Keybinds 0 Fullscreen 1 Font 24/Smallcaps Map View 50x35 Zoom Use 0% Tactical HUD 1 Map Filters NONE Filters NONE Steam 1 RUN: 42feb809-8c21-4095-bc6a-49aa7dbf702e